bitfinex-derivatives/quotes_ETHF0:USTF0_20250110
["timestamp","ask_amount","ask_price","bid_price","bid_amount"]
[1736520963076,3.2078,3251.5,3250.8,3.2078]
[1736520963276,3.97664,3251.9,3251.2,3.2078]
[1736520963580,2.1368,3252.0,3251.2,3.2078]
[1736520963776,3.97642,3252.8,3251.6,3.2078]
[1736520963978,3.2078,3252.8,3252.1,0.3075]
[1736520964283,3.2078,3252.8,3251.6,3.2078]
[1736520964487,3.2078,3252.1,3251.1,4.321]
[1736520964782,0.30755,3251.6,3251.3,0.30757]
[1736520964982,0.7687,3252.4,3251.4,0.30757]
[1736520965185,0.76873,3252.3,3251.2,44.0078]
[1736520965376,6.5292621,3252.6,3251.2,44.0078]
[1736520965377,0.30754,3251.8,3251.5,0.30756]
[1736520965579,0.30757,3251.4,3251.3,3.2078]
[1736520965981,0.30763,3250.8,3250.5,4.3623]
[1736520966184,0.76894,3251.4,3250.5,3.2078]
[1736520966372,2.1984,3251.9,3250.9,3.2078]
[1736520966883,3.2078,3252.0,3251.3,3.2078]
[1736520967082,0.30753,3251.9,3251.3,3.2078]
[1736520967287,0.3075,3252.2,3251.9,0.30753]
[1736520967478,0.3075,3252.2,3251.7,3.2078]
[1736520967479,1.1117,3252.6,3251.7,3.2078]
[1736520967982,0.76857,3253.0,3252.1,3.2078]
[1736520968175,0.76854,3253.2,3252.1,3.2078]
[1736520968380,4.3195,3253.3,3252.1,3.2078]
[1736520968381,0.30749,3252.4,3252.1,3.2078]
[1736520968576,0.76854,3253.1,3252.2,0.3075]
[1736520968776,1.0647,3253.4,3252.5,3.2078]
[1736520968983,0.59810406,3254.6,3253.3,3.2078]
[1736520968984,0.76829,3254.2,3253.3,3.2078]
[1736520969283,5.4247,3254.4,3253.3,3.2078]
[1736520969474,0.76828,3254.2,3252.8,3.2078]
[1736520969677,3.2078,3254.0,3252.8,3.2078]
[1736520969877,0.30739,3253.3,3253.2,3.2078]
[1736520970074,3.2078,3253.6,3252.8,3.2078]
[1736520970286,0.30743,3252.9,3252.8,3.2078]
[1736520970483,3.2078,3253.6,3252.5,1.1421]
[1736520970673,6.19293,3254.4,3253.5,3.2078]
[1736520970877,5.4247,3254.4,3253.5,3.2078]
[1736520971075,0.30731,3254.3,3253.6,0.30736]
[1736520971281,0.76811,3254.9,3253.9,3.2078]
[1736520971486,4.3498,3255.0,3253.9,3.2078]
[1736520971681,0.30724,3255.0,3254.5,0.30728]
[1736520971885,3.2078,3255.4,3254.3,3.51509]
[1736520972187,3.2078,3255.0,3253.9,4.3717]
[1736520972380,0.30733,3254.0,3253.9,4.3717]
[1736520972582,0.30731,3254.2,3253.9,4.3717]
[1736520972783,3.2078,3255.0,3253.9,4.3717]
[1736520973089,0.30729,3254.5,3254.1,0.30731]
[1736520973392,3.2078,3255.4,3254.4,3.2078]
[1736520973683,0.30728,3254.5,3254.4,3.2078]
[1736520973879,0.30727,3254.7,3254.4,3.2078]
[1736520974080,0.76802,3255.3,3254.4,3.2078]
[1736520974285,3.2078,3255.4,3254.4,3.2078]
[1736520974486,3.2078,3255.4,3254.7,0.30726]
[1736520974683,0.3072,3255.3,3254.8,40.8]
[1736520974889,3.2078,3255.4,3254.8,40.8]
[1736520975284,0.3072,3255.3,3254.6,0.30726]
[1736520975480,3.2078,3255.4,3254.8,3.2078]
[1736520975789,3.2078,3255.4,3254.9,40.8]
[1736520975990,0.30722,3255.2,3254.9,41.10724]
[1736520976191,0.30721,3255.3,3255.0,0.30723]
[1736520976387,0.30723,3255.0,3254.8,3.2078]
[1736520976688,0.30724,3254.9,3254.8,3.2078]
[1736520976984,0.30727,3254.6,3254.3,3.51509]
[1736520977185,3.2078,3255.4,3254.3,3.2078]
[1736520977387,0.30729,3254.4,3254.3,3.2078]
[1736520977887,0.30732,3254.2,3253.9,3.2078]
[1736520978091,0.30733,3254.0,3253.9,3.2078]
[1736520978289,3.2078,3254.0,3252.5,3.3214621]
[1736520978494,3.2078,3253.9,3252.8,3.2078]
[1736520978679,0.30738,3253.5,3253.2,0.3074]
[1736520978879,3.2078,3254.0,3253.3,0.30739]
[1736520979080,3.2078,3254.0,3252.9,40.8]
[1736520979785,2.2774,3254.5,3252.9,40.8]
[1736520979786,3.2078,3253.6,3252.9,40.8]
[1736520979985,0.30747,3252.5,3252.4,3.2078]
[1736520980183,0.76863,3252.7,3251.9,1.1525]
[1736520980388,0.30755,3251.6,3251.2,0.30759]
[1736520980690,3.2078,3252.0,3251.1,0.27649635]
[1736520980992,0.30756,3251.6,3251.3,0.30758]
[1736520981290,0.76872,3252.4,3251.3,0.30758]
[1736520981291,3.2078,3252.4,3251.3,0.30758]
[1736520981488,3.2078,3252.0,3251.3,0.30758]
[1736520981687,3.2078,3252.0,3251.0,5.4917]
[1736520981887,0.30753,3251.9,3251.6,0.30755]
[1736520982092,0.30752,3252.0,3251.7,0.30754]
[1736520982292,3.2078,3252.6,3251.4,3.2078]
[1736520982489,0.30751,3252.1,3251.8,0.30753]
[1736520982686,0.30752,3252.0,3251.7,0.30754]
[1736520983008,0.76864,3252.7,3251.4,3.2078]
[1736520983009,3.2078,3252.7,3251.4,3.2078]
[1736520983286,0.30754,3251.8,3251.5,0.30756]
[1736520983487,0.76875,3252.2,3251.4,3.2078]
[1736520983689,0.30754,3251.8,3251.5,0.30756]
[1736520983891,3.2078,3252.3,3251.4,3.2078]
[1736520984089,0.30752,3252.0,3251.8,0.30753]
[1736520984287,0.30753,3251.9,3251.6,0.30755]
[1736520984487,3.2078,3252.3,3251.4,3.2078]
[1736520984792,0.30756,3251.6,3251.5,40.8]
[1736520985184,3.2078,3252.3,3251.5,40.8]
[1736520985780,3.2078,3253.6,3252.2,3.2078]
[1736520985989,3.2078,3253.9,3253.3,0.30739]
[1736520986187,3.2078,3253.9,3252.7,0.76863]
[1736520986486,0.30733,3254.0,3253.7,0.30735]
[1736520986686,3.4274,3254.9,3253.5,0.30737]
[1736520986687,3.2078,3254.1,3253.5,0.30737]
[1736520986886,0.30737,3253.5,3253.4,3.2078]
[1736520987183,0.30737,3253.5,3252.7,1.99192683]
[1736520987184,3.2078,3253.7,3252.7,3.48272683]
[1736520987997,3.2078,3253.7,3252.7,3.2078]
[1736520988184,3.2078,3253.0,3252.3,3.2078]
[1736520988390,3.2078,3252.6,3251.6,0.26622773]
[1736520988586,0.76859,3252.9,3251.5,40.8]
[1736520988587,3.2078,3252.7,3251.5,40.8]
[1736520988788,0.76859,3252.9,3251.5,40.8]
[1736520988789,0.30752,3252.1,3251.5,40.8]
[1736520989093,0.30752,3252.1,3251.9,0.30753]
[1736520989094,0.30751,3252.1,3251.9,0.30753]
[1736520989396,3.2078,3252.2,3251.5,40.8]
[1736520989789,0.76865,3252.7,3251.8,0.30753]
[1736520989790,0.30751,3252.1,3251.8,0.30753]
[1736520989989,3.97645,3252.7,3251.5,44.0078]
[1736520990191,3.2078,3252.7,3251.5,44.0078]
[1736520990498,0.30748,3252.4,3252.1,0.30751]
[1736520990793,3.2078,3253.1,3251.5,3.2078]
[1736520990998,3.2078,3253.2,3252.0,0.76881]
[1736520991198,3.2078,3253.2,3252.6,0.30746]
[1736520991394,3.2078,3253.2,3252.8,40.8]
[1736520991594,3.2078,3253.7,3253.1,0.30741]
[1736520991800,3.2078,3253.7,3252.8,44.77641]
[1736520992000,3.494,3254.6,3253.2,3.2078]
[1736520992196,2.3172,3254.6,3253.6,3.2078]
[1736520992503,3.2078,3255.3,3254.0,3.2078]
[1736520992697,0.30726,3254.7,3254.5,0.30728]
[1736520993096,3.2078,3255.3,3254.0,3.2078]
[1736520993300,3.2078,3255.3,3254.5,0.30728]
[1736520993496,3.2078,3255.3,3254.0,3.2078]
[1736520993696,3.51505,3254.9,3254.7,0.30726]
[1736520993901,0.30725,3254.8,3254.6,0.30727]
[1736520994101,0.30726,3254.8,3254.0,3.2078]
[1736520994301,3.2078,3254.9,3254.0,3.2078]
[1736520994499,3.2078,3254.9,3254.4,3.2078]
[1736520994703,0.30726,3254.8,3254.5,0.30728]
[1736520994899,0.30725,3254.8,3254.4,3.2078]
[1736520995105,3.2078,3255.3,3254.4,3.2078]
[1736520995306,3.2078,3255.3,3254.0,3.2078]
[1736520995596,0.30729,3254.4,3253.8,0.30735]
[1736520995798,3.2078,3254.5,3253.6,3.2078]
[1736520996000,0.30728,3254.6,3253.7,1.07576]
[1736520996203,3.2078,3254.2,3253.9,0.30733]
[1736520996405,3.2078,3254.8,3253.6,3.2078]
[1736520996793,3.2078,3254.5,3253.5,40.8]
[1736520997105,0.30737,3253.7,3252.7,3.2078]
[1736520997408,0.30734,3254.0,3253.6,0.30737]
[1736520997596,4.3247,3254.4,3253.3,3.2078]
[1736520998609,0.30733,3254.0,3253.8,0.30735]
[1736520998804,0.30735,3253.9,3253.6,0.30736]
[1736520999005,0.30737,3253.7,3253.4,0.30738]
[1736520999306,0.30734,3253.9,3253.7,0.30735]
[1736520999507,3.2078,3254.4,3253.7,3.2078]
[1736520999803,3.2078,3254.4,3253.0,1.0335421]
[1736520999804,3.2078,3254.4,3253.2,3.2078]
[1736520999999,0.30734,3254.0,3253.7,0.30735]
[1736521000205,3.2078,3254.4,3253.7,0.30735]
[1736521000409,3.2078,3254.4,3253.9,0.30733]
[1736521000604,0.30732,3254.1,3253.9,0.30733]
[1736521000907,0.30734,3253.9,3253.7,0.30736]
[1736521001103,0.76826,3254.3,3253.2,3.2078]
[1736521001304,0.30732,3254.1,3253.9,0.30733]
[1736521001605,0.30732,3254.1,3253.3,0.76849]
[1736521001606,3.2078,3255.0,3254.0,3.2078]
[1736521001812,3.51505,3254.9,3254.7,0.30726]
[1736521002114,3.2078,3254.9,3254.0,4.323]
[1736521002398,3.51504,3254.9,3254.8,40.8]
[1736521002602,0.768,3255.4,3254.8,40.8]
[1736521002603,3.2078,3255.4,3254.9,0.30724]
[1736521002802,3.2078,3255.4,3254.8,40.8]
[1736521002995,0.76788,3255.9,3254.9,3.2078]
[1736521003206,0.30714,3256.0,3255.4,0.30719]
[1736521003395,3.2078,3256.1,3255.4,3.2078]
[1736521003702,0.30717,3255.7,3255.4,0.30719]
[1736521003898,3.2078,3256.1,3255.1,3.2078]
[1736521004100,3.2078,3256.1,3255.6,0.30718]
[1736521004301,3.2078,3256.1,3255.4,0.30719]
[1736521004302,0.30718,3255.6,3255.4,0.30719]
[1736521004503,3.2078,3256.1,3255.5,0.30718]
[1736521004705,0.30717,3255.7,3255.5,0.30718]
[1736521004913,0.30719,3255.6,3255.2,0.30722]
[1736521005106,0.30719,3255.5,3255.1,3.2078]
[1736521005300,3.2078,3256.1,3255.1,3.2078]
[1736521005606,3.2078,3255.6,3254.6,3.47485198]
[1736521005798,3.2078,3255.6,3254.6,3.2078]
[1736521005996,3.2078,3255.6,3254.9,0.30724]
[1736521006197,0.76798,3255.5,3254.6,3.2078]
[1736521006401,3.2078,3255.6,3254.6,3.2078]
[1736521006903,3.2078,3255.6,3254.5,41.9809]
[1736521006904,3.2078,3255.6,3255.1,3.2078]
[1736521007113,3.2078,3255.6,3255.5,0.30719]
[1736521007406,3.2078,3255.6,3255.3,0.30721]
[1736521007605,3.2078,3255.6,3255.1,3.2078]
[1736521007912,3.2078,3255.6,3254.5,41.9809]
[1736521008102,3.2078,3255.6,3254.7,3.2078]
[1736521008407,3.2078,3255.6,3255.5,0.30719]
[1736521008603,3.2078,3255.6,3255.1,3.2078]
[1736521009009,0.30719,3255.5,3255.3,0.3072]
[1736521009199,3.2078,3255.6,3255.5,0.30719]
[1736521009401,3.2078,3255.6,3255.4,0.30719]
[1736521009607,3.2078,3256.0,3255.1,3.2078]
[1736521009904,0.30718,3255.6,3255.4,0.30719]
[1736521010105,3.2078,3256.0,3255.5,0.30718]
[1736521010408,0.30718,3255.6,3255.4,0.30719]
[1736521010606,0.3072,3255.4,3255.2,0.30721]
[1736521010808,0.30721,3255.3,3255.2,0.30721]
[1736521011010,3.2078,3255.6,3255.0,3.2078]
[1736521011205,0.30722,3255.2,3255.0,3.51503]
[1736521011507,0.30722,3255.2,3255.1,0.30723]
[1736521011704,0.7679,3255.9,3254.8,3.97594]
[1736521011904,0.7679,3255.9,3255.4,0.30719]
[1736521012207,3.2078,3256.0,3255.2,3.2078]
[1736521012404,0.30715,3256.0,3255.8,0.30715]
[1736521012611,1.2197,3256.2,3255.6,3.2078]
[1736521012806,0.30717,3255.8,3255.7,40.8]
[1736521013002,1.2197,3256.2,3255.7,40.8]
[1736521013202,1.2197,3256.2,3256.0,0.30713]
[1736521013203,1.52682,3256.2,3256.0,0.30713]
[1736521013409,0.30715,3256.0,3255.8,0.30715]
[1736521013802,1.2197,3256.2,3255.7,40.8]
[1736521014003,0.30715,3255.9,3255.7,41.10716]
[1736521014311,0.30715,3255.9,3255.4,3.2078]
[1736521014512,0.30715,3256.0,3255.8,0.30716]
[1736521014707,0.30713,3256.1,3255.9,41.10714]
[1736521015011,0.30712,3256.2,3256.0,0.30713]
[1736521015207,3.2078,3256.4,3255.9,40.8]
[1736521015406,3.2078,3256.9,3256.2,3.2078]
[1736521015603,0.76751,3257.5,3255.9,40.8]
[1736521015604,3.97537,3257.3,3255.9,41.56787]
[1736521015803,3.2078,3257.3,3255.9,40.8]
[1736521016009,0.76758,3257.2,3256.4,0.3071]
[1736521016212,3.2078,3256.9,3256.4,0.3071]
[1736521016407,0.30708,3256.7,3255.9,40.8]
[1736521016709,3.2078,3256.9,3255.9,40.8]
[1736521016912,3.2078,3257.4,3256.6,3.2078]
[1736521017111,0.30704,3257.1,3256.9,0.30705]
[1736521017413,0.30703,3257.2,3256.6,3.2078]
[1736521017614,0.30705,3257.1,3256.9,0.30705]
[1736521017813,3.2078,3257.4,3256.8,0.30707]
[1736521018008,0.30702,3257.3,3256.9,0.30705]
[1736521018216,3.2078,3257.4,3256.6,3.2078]
[1736521018508,0.30708,3256.7,3256.6,3.2078]
[1736521018712,0.76756,3257.3,3256.6,3.2078]
[1736521018908,3.2078,3257.4,3256.6,3.2078]
[1736521019108,3.2078,3257.4,3256.0,4.0491]
[1736521019109,0.76762,3257.1,3256.0,4.3127999]
[1736521019310,0.3071,3256.5,3256.4,0.3071]
[1736521019508,0.3071,3256.5,3255.9,44.0078]
[1736521019509,3.2078,3256.5,3255.9,44.0078]
[1736521019712,3.2078,3256.7,3255.9,3.2078]
[1736521020013,3.2078,3256.7,3255.5,0.26429212]
[1736521020014,0.30705,3257.0,3256.6,0.30709]
[1736521020310,0.30706,3256.9,3256.8,0.30707]
[1736521020516,0.30707,3256.8,3256.7,40.8]
[1736521020909,3.2078,3256.8,3255.9,0.30715]
[1736521021105,0.30713,3256.2,3256.1,0.30713]
[1736521021313,3.2078,3256.8,3255.9,40.8]
[1736521021515,0.30713,3256.2,3256.1,0.30713]
[1736521021713,3.2078,3256.8,3255.9,40.8]
[1736521021916,0.30712,3256.3,3255.9,40.8]
[1736521022116,0.30702,3257.4,3257.2,0.30702]
[1736521022411,3.2078,3258.5,3257.2,3.2078]
[1736521022614,0.30689,3258.7,3258.1,0.30694]
[1736521022814,2.3426,3258.8,3257.7,3.2078]
[1736521023012,0.30691,3258.6,3258.3,0.30692]
[1736521023208,3.2078,3258.7,3257.7,3.2078]
[1736521023515,0.30696,3258.0,3257.8,0.30697]
[1736521023814,0.30698,3257.8,3257.4,1.1702]
[1736521024011,3.2078,3257.9,3257.2,3.2078]
[1736521024410,0.307,3257.6,3257.2,3.2078]
[1736521024708,3.2078,3257.9,3257.0,1.715]
[1736521024909,0.30701,3257.5,3257.2,0.30702]
[1736521025122,0.30699,3257.6,3256.9,3.2078]
[1736521025417,3.2078,3257.9,3257.8,0.30697]
[1736521025612,0.30692,3258.4,3258.1,0.30694]
[1736521025809,3.2078,3258.5,3258.4,0.30692]
[1736521026119,3.2078,3259.0,3258.7,0.30689]
[1736521026320,0.30688,3258.9,3258.6,0.30689]
[1736521026521,0.30683,3259.3,3258.9,0.30686]
[1736521026715,2.4232,3259.4,3259.1,0.30685]
[1736521026716,2.73003,3259.4,3259.1,0.30685]
[1736521026915,2.73003,3259.4,3258.6,3.2078]
[1736521026916,0.30683,3259.3,3259.2,40.8]
[1736521027816,3.2078,3259.5,3259.2,40.8]
[1736521028411,3.51462,3259.5,3259.3,0.30683]
[1736521028615,3.2078,3259.5,3259.2,40.8]
[1736521028823,3.51462,3259.5,3259.3,0.30683]
[1736521029023,3.2078,3259.5,3258.2,3.2078]
[1736521029221,3.2078,3258.7,3257.8,3.2078]
[1736521029424,3.2078,3258.7,3257.9,1.1504]
[1736521029617,0.3069,3258.6,3258.4,0.30691]
[1736521029920,3.2078,3259.5,3258.5,3.2078]
[1736521030119,3.51462,3259.5,3259.3,0.30683]
[1736521030317,3.2078,3259.5,3258.6,3.3214621]
[1736521030522,3.2078,3259.5,3258.9,0.30687]
[1736521030523,0.30685,3259.1,3258.9,0.30687]
[1736521030719,0.30685,3259.1,3259.0,40.8]
[1736521030918,0.30685,3259.1,3258.5,3.2078]
[1736521030919,0.30688,3258.9,3258.5,3.2078]
[1736521031127,3.2078,3259.1,3258.1,6.79241739]
[1736521031424,3.2078,3259.1,3258.1,47.3292621]
[1736521031723,0.30688,3258.9,3258.6,0.30689]
[1736521031922,0.76707,3259.4,3258.1,47.3292621]
[1736521032217,3.2078,3259.1,3258.1,47.3292621]
[1736521032423,3.2078,3258.6,3257.7,3.47453253]
[1736521032618,0.30691,3258.5,3258.2,0.30693]
[1736521032827,3.2078,3258.6,3258.5,0.30691]
[1736521033316,3.2078,3259.5,3258.5,3.2078]
[1736521033516,0.30682,3259.4,3259.1,0.30684]
[1736521033721,3.2078,3259.5,3259.2,0.30684]
[1736521033913,3.51462,3259.5,3258.8,0.30688]
[1736521034118,0.30683,3259.4,3259.1,0.30684]
[1736521034318,3.2078,3259.5,3258.6,3.3214621]
[1736521034517,3.2078,3259.5,3259.1,0.30685]
[1736521034718,0.30684,3259.3,3259.2,40.8]
[1736521035122,0.30686,3259.1,3258.9,0.30686]
[1736521035419,3.2078,3259.5,3258.6,3.3214621]
[1736521035625,3.2078,3259.5,3259.0,40.8]
[1736521036127,0.30684,3259.3,3259.1,0.30684]
[1736521036420,3.2078,3259.5,3259.1,0.30684]
[1736521036625,0.30683,3259.4,3259.0,40.8]
[1736521036924,3.2078,3259.5,3259.1,0.30685]
[1736521037124,3.2078,3259.5,3258.5,3.2078]
[1736521037321,0.30684,3259.3,3259.0,0.30685]
[1736521037617,3.2078,3259.5,3259.0,40.8]
[1736521037820,3.2078,3259.5,3258.5,3.2078]
[1736521038023,5.631,3259.9,3258.9,3.2078]
[1736521038223,1.2022,3259.9,3259.8,0.30678]
[1736521038423,1.2022,3259.9,3259.3,3.2078]
[1736521038424,1.50898,3259.9,3259.7,0.30679]
[1736521038623,0.30679,3259.8,3259.6,0.3068]
[1736521038919,3.2078,3260.4,3259.2,0.76711]
[1736521039120,3.2078,3260.4,3259.3,3.2078]
[1736521039326,3.2078,3260.4,3259.6,0.767]
[1736521039517,0.30674,3260.3,3260.1,0.30675]
[1736521039924,3.2078,3260.4,3259.6,0.767]
[1736521040119,3.2078,3260.4,3259.3,3.97487]
[1736521040324,3.2078,3260.0,3259.3,3.2078]
[1736521040522,3.2078,3259.6,3259.1,1.153]
[1736521040825,0.30686,3259.0,3258.8,3.2078]
[1736521041020,3.2078,3259.6,3258.8,3.2078]
[1736521041216,0.3068,3259.7,3259.5,0.30681]
[1736521041414,0.30681,3259.5,3259.1,0.30685]
[1736521041614,0.30686,3259.1,3258.9,0.30686]
[1736521041818,0.30684,3259.3,3258.8,3.2078]
[1736521042027,0.30685,3259.1,3258.9,0.30687]
[1736521042322,0.30687,3258.9,3258.8,3.2078]
[1736521043226,5.0,3258.9,3257.6,3.2078]
[1736521043430,3.2078,3258.4,3257.6,3.2078]
[1736521043725,3.24723,3259.3,3257.2,6.02011591]
[1736521043726,0.30702,3257.4,3257.2,5.11664591]
[1736521043927,3.2078,3257.7,3256.9,0.26758643]
[1736521044126,3.2078,3257.7,3256.7,8.21242591]
[1736521044427,3.2078,3257.7,3256.8,0.76768]
[1736521044627,3.2078,3257.7,3257.3,40.8]
[1736521044829,0.30701,3257.4,3257.3,40.8]
[1736521045216,3.2078,3257.7,3256.7,8.48100738]
[1736521045421,2.3112,3258.3,3256.7,5.27320738]
[1736521045422,0.30707,3256.8,3256.7,5.27320738]
[1736521045619,0.30707,3256.8,3256.7,0.46359147]
[1736521045916,3.2078,3256.9,3256.7,0.46359147]
[1736521046424,0.30702,3257.3,3256.9,0.30705]
[1736521046822,0.30702,3257.3,3256.7,0.46359147]
[1736521047128,3.2078,3257.8,3256.7,3.67139147]
[1736521047329,0.30701,3257.5,3257.1,3.51484]
[1736521047525,3.2078,3257.8,3256.7,3.40281]
[1736521047721,3.2078,3257.4,3256.7,3.40281]
[1736521047930,3.2078,3257.8,3257.1,3.2078]
[1736521048123,3.2078,3257.8,3257.2,3.3214621]
[1736521048322,3.2078,3258.3,3257.5,3.2078]
[1736521048621,3.2078,3258.3,3258.2,0.30694]
[1736521048831,2.3016,3259.1,3257.9,4.9208]
[1736521049131,2.60845,3259.1,3258.7,0.30688]
[1736521049322,2.3016,3259.1,3258.8,40.8]
[1736521049524,3.2078,3258.9,3257.9,3.2078]
[1736521049727,3.2078,3258.9,3257.5,3.2078]
[1736521049931,0.30691,3258.5,3258.1,0.30694]
[1736521050124,3.2078,3258.9,3258.2,40.8]
[1736521050434,3.2078,3258.3,3258.2,40.8]
[1736521050622,0.30693,3258.3,3258.2,40.8]
[1736521051131,0.30698,3257.7,3257.4,0.30701]
[1736521051431,3.2078,3258.4,3258.2,0.30693]
[1736521051628,3.2078,3258.4,3257.5,0.76751]
[1736521051629,0.30693,3258.3,3257.9,0.30696]
[1736521051825,0.30693,3258.3,3258.0,0.30695]
[1736521052128,3.2078,3258.5,3258.4,0.30692]
[1736521052722,0.30696,3258.0,3257.6,0.30699]
[1736521052923,3.2078,3257.8,3256.9,8.01741591]
[1736521053118,3.2078,3259.0,3257.7,6.5292621]
[1736521053333,1.2147,3259.1,3258.2,3.2078]
[1736521053531,0.30694,3258.3,3257.9,0.30696]
[1736521053731,0.30694,3258.2,3257.7,3.3214621]
[1736521053928,3.2078,3258.8,3257.6,1.1405]
[1736521054133,3.2078,3257.8,3256.7,0.19501]
[1736521054331,0.30707,3256.8,3256.7,0.19501]
[1736521054833,0.30709,3256.6,3256.5,4.80961591]
[1736521055330,1.1607,3256.7,3256.5,4.80961591]
[1736521055525,0.30704,3257.1,3256.8,0.30707]
[1736521055725,0.30704,3257.1,3256.2,3.2078]
[1736521055726,3.2078,3257.2,3256.3,0.76779]
[1736521055921,4.3685,3257.6,3257.3,0.30701]
[1736521056125,3.2078,3257.6,3257.5,0.307]
[1736521056332,0.76722,3258.8,3257.9,0.30696]
[1736521056333,0.30694,3258.2,3257.9,0.30696]
[1736521056527,3.2078,3258.0,3257.0,4.4435]
[1736521056729,0.30694,3258.2,3257.4,6.5292621]
[1736521056931,3.2078,3258.5,3257.5,0.76751]
[1736521057130,3.2078,3258.5,3257.8,3.2078]
[1736521057334,3.2078,3258.5,3257.3,1.714]
[1736521057335,3.2078,3259.2,3258.2,3.2078]
[1736521057524,3.2078,3259.6,3258.6,3.2078]
[1736521057731,0.30682,3259.5,3259.2,0.30684]
[1736521058041,1.2194,3259.8,3259.0,3.2078]
[1736521058237,3.2078,3260.0,3259.0,3.2078]
[1736521058533,3.2078,3260.0,3259.0,4.4435]
[1736521058726,3.2078,3259.5,3258.8,0.30687]
[1736521058926,1.2194,3259.9,3258.5,3.2078]
[1736521059131,0.30686,3259.1,3258.7,0.30688]
[1736521059325,3.2078,3259.3,3258.5,3.2078]
[1736521059529,0.30684,3259.2,3258.8,0.30687]
[1736521059734,0.76702,3259.6,3258.5,3.2078]
[1736521059929,0.30685,3259.2,3258.9,0.30686]
[1736521060237,0.30681,3259.6,3258.7,0.30688]
[1736521060439,3.2078,3259.7,3258.5,3.2078]
[1736521060639,0.30686,3259.0,3258.7,0.30688]
[1736521060834,3.2078,3259.3,3258.5,3.2078]
[1736521061538,0.30688,3258.8,3258.5,3.5147]
[1736521061938,3.2078,3259.3,3258.8,0.30688]
[1736521062127,3.2078,3259.3,3258.5,3.2078]
[1736521062627,0.30687,3258.9,3258.6,41.10689]
[1736521062937,0.30687,3259.0,3258.7,0.30688]
[1736521063141,0.30687,3259.0,3258.7,0.30689]
[1736521063338,3.2078,3259.3,3258.5,3.2078]
[1736521063729,0.30691,3258.5,3258.2,0.30693]
[1736521064132,3.2078,3258.6,3258.3,0.30692]
[1736521064332,3.2078,3258.6,3257.9,3.2078]
[1736521064529,0.30692,3258.4,3258.1,0.30694]
[1736521064738,0.30692,3258.4,3258.1,41.10694]
[1736521064943,0.30694,3258.2,3258.1,40.8]
[1736521065138,3.2078,3258.6,3257.4,3.2078]
[1736521065337,0.30695,3258.1,3257.8,0.30697]
[1736521065540,0.30695,3258.0,3257.8,0.30697]
[1736521065740,3.2078,3258.6,3257.9,40.8]
[1736521066040,3.2078,3258.6,3258.4,0.30691]
[1736521066341,3.2078,3258.6,3257.9,40.8]
[1736521066538,3.51475,3258.1,3257.9,40.8]
[1736521066842,3.51475,3258.1,3257.9,41.10696]
[1736521067041,3.51475,3258.1,3257.9,40.8]
[1736521067241,3.2078,3258.5,3257.9,40.8]
[1736521067539,0.30695,3258.0,3257.9,40.8]
[1736521067839,3.2078,3258.1,3256.9,9.19549423]
[1736521068340,3.2078,3258.1,3257.2,0.30702]
[1736521068341,0.307,3257.5,3257.2,0.30702]
[1736521068534,3.51477,3257.9,3257.6,0.30699]
[1736521068735,0.30697,3257.9,3257.5,0.30699]
[1736521069043,0.30696,3258.0,3257.1,3.2078]
[1736521070737,3.2078,3259.0,3258.9,0.30687]
[1736521070941,0.30682,3259.4,3259.1,0.30685]
[1736521071136,2.3803,3259.8,3259.1,3.2078]
[1736521071335,3.2078,3260.0,3259.9,0.30678]
[1736521071537,3.2078,3260.0,3259.2,40.8]
[1736521071934,3.2078,3260.4,3259.5,3.2078]
[1736521072134,3.2078,3260.4,3260.1,0.30675]
[1736521072347,0.3067,3260.7,3260.2,0.30674]
[1736521072533,3.2078,3260.8,3259.6,0.3068]
[1736521072849,3.2078,3260.8,3259.9,3.2078]
[1736521073144,3.2078,3260.8,3259.8,0.76696]
[1736521073145,3.2078,3260.8,3260.5,0.30671]
[1736521073341,3.51449,3260.8,3260.4,0.30672]
[1736521073744,3.2078,3260.8,3259.8,3.2078]
[1736521074144,3.2078,3260.8,3259.9,0.30678]
[1736521074145,0.30672,3260.5,3259.9,0.30678]
[1736521074349,3.2078,3260.8,3259.8,3.2078]
[1736521074542,0.30673,3260.4,3260.0,0.30676]
[1736521075042,0.30673,3260.4,3259.8,3.2078]
[1736521075043,3.2078,3260.4,3259.8,3.2078]
[1736521075349,0.30679,3259.8,3259.4,1.45152]
[1736521075541,3.2078,3260.0,3259.3,3.2078]
[1736521075741,0.30682,3259.5,3259.3,3.2078]
[1736521075949,3.2078,3259.6,3258.9,4.78079423]
[1736521076140,3.2078,3259.6,3258.6,3.2078]
[1736521076141,0.30682,3259.4,3258.6,3.2078]
[1736521076451,3.2078,3259.0,3258.3,3.2078]
[1736521076746,3.2078,3259.0,3258.2,6.00429423]
[1736521076747,3.2078,3259.9,3258.9,3.2078]
[1736521077139,0.30678,3259.9,3259.6,0.3068]
[1736521077344,3.2078,3259.9,3259.0,40.8]
[1736521077746,0.30684,3259.3,3259.0,0.30685]
[1736521078047,0.30685,3259.2,3258.9,3.51467]
[1736521078242,3.2078,3259.9,3258.9,3.2078]
[1736521078243,0.76699,3259.7,3258.9,3.2078]
[1736521078450,0.76699,3259.7,3258.5,40.8]
[1736521078451,3.2078,3259.1,3258.5,41.1069]